{"text_format":"3","workbook":"xlsx","n_sheets":2,"sheets":["list","data"],"not_rendered":{"external_links":2,"defined_names":1},"read":"whole","date_system":"1900"}

{"sheet":"list","index":0,"n_rows":22,"n_cols":16,"rows_kept":22}
["№","Фамлия","Имя","Отчество","Пол","Дата рождения","Участник с ОВЗ","Класс","Класс участия","Балл","Макс. Балл","Статус","Призер МЭ прошлого года","Учитель","Место работы учителя","Направление, вид практики  по технологии"]
[1,3,4,5,6,7,8,9,10,11,12,13,14,15,16,17]
[1,{"$f":"[1]list!C3","v":"Гиматдинова"},{"$f":"[1]list!D3","v":"Ясмина"},{"$f":"[1]list!E3","v":"Ильдаровна"},{"$f":"[1]list!F3","v":"ж"},"03.11.2012","нет",{"$f":"[1]list!I3","v":5},{"$f":"[1]list!J3","v":5},{"$f":"[1]list!K3","v":20},{"$f":"[1]list!L3","v":37},"призер",null,"Жукова Г.В.","Муниципальное бюджетное общеобразовательное учреждение \"Средняя общеобразовательная школа №4 г.Лениногорск\" муниципального образования \"Лениногорский муниципальный район\" Республики Татарстан"]
[2,{"$f":"[1]list!C4","v":"Казаков"},{"$f":"[1]list!D4","v":"Илья"},{"$f":"[1]list!E4","v":"Евгеньевич"},{"$f":"[1]list!F4","v":"м"},"09.07.2012",{"$f":"$G$3","v":"нет"},{"$f":"[1]list!I4","v":5},{"$f":"[1]list!J4","v":5},{"$f":"[1]list!K4","v":29},{"$f":"[1]list!L4","v":37},"победитель",null,"Жукова Г.В.","Муниципальное бюджетное общеобразовательное учреждение \"Средняя общеобразовательная школа №4 г.Лениногорск\" муниципального образования \"Лениногорский муниципальный район\" Республики Татарстан"]
[3,{"$f":"[1]list!C5","v":"Газимзянова"},{"$f":"[1]list!D5","v":"Камила"},{"$f":"[1]list!E5","v":"Маратовна"},{"$f":"[1]list!F5","v":"ж"},"08.08.2012",{"$f":"$G$3","v":"нет"},{"$f":"[1]list!I5","v":5},{"$f":"[1]list!J5","v":5},{"$f":"[1]list!K5","v":23},{"$f":"[1]list!L5","v":37},"призер",null,"Жукова Г.В.","Муниципальное бюджетное общеобразовательное учреждение \"Средняя общеобразовательная школа №4 г.Лениногорск\" муниципального образования \"Лениногорский муниципальный район\" Республики Татарстан"]
[4,{"$f":"[1]list!C6","v":"Гайфутдинов"},{"$f":"[1]list!D6","v":"Султан"},{"$f":"[1]list!E6","v":"Айдарович"},{"$f":"[1]list!F6","v":"м"},"23.07.2012",{"$f":"$G$3","v":"нет"},{"$f":"[1]list!I6","v":5},{"$f":"[1]list!J6","v":5},{"$f":"[1]list!K6","v":12},{"$f":"[1]list!L6","v":37},"участник",null,"Жукова Г.В.","Муниципальное бюджетное общеобразовательное учреждение \"Средняя общеобразовательная школа №4 г.Лениногорск\" муниципального образования \"Лениногорский муниципальный район\" Республики Татарстан"]
[5,{"$f":"[1]list!C7","v":"Смирнов"},{"$f":"[1]list!D7","v":"Тимур"},{"$f":"[1]list!E7","v":"Николаевич"},{"$f":"[1]list!F7","v":"м"},"22.06.2012",{"$f":"$G$3","v":"нет"},{"$f":"[1]list!I7","v":5},{"$f":"[1]list!J7","v":5},{"$f":"[1]list!K7","v":8},{"$f":"[1]list!L7","v":37},"участник",null,"Жукова Г.В.","Муниципальное бюджетное общеобразовательное учреждение \"Средняя общеобразовательная школа №4 г.Лениногорск\" муниципального образования \"Лениногорский муниципальный район\" Республики Татарстан"]
[6,"Гринин","Алексей","Андреевич","м","2011-07-15",{"$f":"$G$3","v":"нет"},6,6,24,42,"призер",null,"Елистратова М.Б.","Муниципальное бюджетное общеобразовательное учреждение \"Средняя общеобразовательная школа №4 г.Лениногорск\" муниципального образования \"Лениногорский муниципальный район\" Республики Татарстан"]
[7,"Эргашев","Константин","Валерьевич","м","2009-07-03","нет",6,6,7,42,"участник",null,"Елистратова М.Б.","Муниципальное бюджетное общеобразовательное учреждение \"Средняя общеобразовательная школа №4 г.Лениногорск\" муниципального образования \"Лениногорский муниципальный район\" Республики Татарстан"]
[8,{"$f":"'[2]ШЭ Химия '!C3","v":"Латыпов"},{"$f":"'[2]ШЭ Химия '!D3","v":"Айрат"},{"$f":"'[2]ШЭ Химия '!E3","v":"Альбертович"},{"$f":"'[2]ШЭ Химия '!F3","v":"м"},{"$f":"'[2]ШЭ Химия '!$G$3","v":"2010-10-05"},{"$f":"$G$3","v":"нет"},{"$f":"'[2]ШЭ Химия '!I3","v":7},{"$f":"'[2]ШЭ Химия '!J3","v":7},{"$f":"'[2]ШЭ Химия '!K3","v":30},{"$f":"'[2]ШЭ Химия '!L3","v":45},{"$f":"'[2]ШЭ Химия '!M3","v":"призер"},null,{"$f":"'[2]ШЭ Химия '!O3","v":"Хамидуллина Р.Х."},"Муниципальное бюджетное общеобразовательное учреждение \"Средняя общеобразовательная школа №4 г.Лениногорск\" муниципального образования \"Лениногорский муниципальный район\" Республики Татарстан"]
[9,"Валиев",{"$f":"'[2]ШЭ Химия '!D4","v":"Ислам"},{"$f":"'[2]ШЭ Химия '!E4","v":"Ринатович"},{"$f":"'[2]ШЭ Химия '!F4","v":"м"},{"$f":"'[2]ШЭ Химия '!$G$4","v":"2010-03-01"},{"$f":"$G$3","v":"нет"},{"$f":"'[2]ШЭ Химия '!I4","v":7},{"$f":"'[2]ШЭ Химия '!J4","v":7},{"$f":"'[2]ШЭ Химия '!K4","v":29},{"$f":"'[2]ШЭ Химия '!L4","v":45},{"$f":"'[2]ШЭ Химия '!M4","v":"призер"},null,{"$f":"'[2]ШЭ Химия '!O4","v":"Хамидуллина Р.Х."},"Муниципальное бюджетное общеобразовательное учреждение \"Средняя общеобразовательная школа №4 г.Лениногорск\" муниципального образования \"Лениногорский муниципальный район\" Республики Татарстан"]
[10,{"$f":"'[2]ШЭ Химия '!C5","v":"Фатхутдинов"},{"$f":"'[2]ШЭ Химия '!D5","v":"Ильнур"},{"$f":"'[2]ШЭ Химия '!E5","v":"Марселевич"},{"$f":"'[2]ШЭ Химия '!F5","v":"м"},{"$f":"'[2]ШЭ Химия '!$G$4","v":"2010-03-01"},{"$f":"$G$3","v":"нет"},{"$f":"'[2]ШЭ Химия '!I5","v":7},{"$f":"'[2]ШЭ Химия '!J5","v":7},{"$f":"'[2]ШЭ Химия '!K5","v":19},{"$f":"'[2]ШЭ Химия '!L5","v":45},{"$f":"'[2]ШЭ Химия '!M5","v":"участник"},null,{"$f":"'[2]ШЭ Химия '!O5","v":"Хамидуллина Р.Х."},"Муниципальное бюджетное общеобразовательное учреждение \"Средняя общеобразовательная школа №4 г.Лениногорск\" муниципального образования \"Лениногорский муниципальный район\" Республики Татарстан"]
[11,"Завьялова","Анастасия","Сергеевна","ж","2010-01-24","нет",8,8,45,61,"призер",null,"Елистратова М.Б.","Муниципальное бюджетное общеобразовательное учреждение \"Средняя общеобразовательная школа №4 г.Лениногорск\" муниципального образования \"Лениногорский муниципальный район\" Республики Татарстан"]
[12,"Афанасьева","Карина","Артемовна","ж","2009-04-06","нет",8,8,44,61,"призер",null,"Елистратова М.Б.","Муниципальное бюджетное общеобразовательное учреждение \"Средняя общеобразовательная школа №4 г.Лениногорск\" муниципального образования \"Лениногорский муниципальный район\" Республики Татарстан"]
[13,"Носова","Яна","Артемовна","ж","2010-01-12","нет",8,8,44,61,"призер",null,"Елистратова М.Б.","Муниципальное бюджетное общеобразовательное учреждение \"Средняя общеобразовательная школа №4 г.Лениногорск\" муниципального образования \"Лениногорский муниципальный район\" Республики Татарстан"]
[14,"Саитгараева","Альбина","Ильдусовна","ж","2009-02-24","нет",8,8,40,61,"призер",null,"Елистратова М.Б.","Муниципальное бюджетное общеобразовательное учреждение \"Средняя общеобразовательная школа №4 г.Лениногорск\" муниципального образования \"Лениногорский муниципальный район\" Республики Татарстан"]
[15,"Пономарев","Ярослав","Денисович","м","2009-04-05","нет",8,8,32,61,"призер",null,"Елистратова М.Б.","Муниципальное бюджетное общеобразовательное учреждение \"Средняя общеобразовательная школа №4 г.Лениногорск\" муниципального образования \"Лениногорский муниципальный район\" Республики Татарстан"]
[16,"Кузьмин","Алексей ","Иванович","м","2009-08-17","нет",8,8,27,61,"участник",null,"Елистратова М.Б.","Муниципальное бюджетное общеобразовательное учреждение \"Средняя общеобразовательная школа №4 г.Лениногорск\" муниципального образования \"Лениногорский муниципальный район\" Республики Татарстан"]
[17,"Сидоров","Данила","Андреевич","м","2009-02-22","нет",8,8,10,61,"участник",null,"Елистратова М.Б.","Муниципальное бюджетное общеобразовательное учреждение \"Средняя общеобразовательная школа №4 г.Лениногорск\" муниципального образования \"Лениногорский муниципальный район\" Республики Татарстан"]
[18,"Вахитов","Эдуард","Русланович","м","2006-03-21","нет",10,10,21,62,"участник",null,"Елистратова М.Б.","Муниципальное бюджетное общеобразовательное учреждение \"Средняя общеобразовательная школа №4 г.Лениногорск\" муниципального образования \"Лениногорский муниципальный район\" Республики Татарстан"]
[19,"Данилов","Руслан","Евгеньевич","м","2006-10-29","нет",10,10,30,62,"участник",null,"Елистратова М.Б.","Муниципальное бюджетное общеобразовательное учреждение \"Средняя общеобразовательная школа №4 г.Лениногорск\" муниципального образования \"Лениногорский муниципальный район\" Республики Татарстан"]
[20,"Эскин","Алексей ","Евгеньевич","м","2007-12-03","нет",10,10,26,62,"участник","да","Елистратова М.Б.","Муниципальное бюджетное общеобразовательное учреждение \"Средняя общеобразовательная школа №4 г.Лениногорск\" муниципального образования \"Лениногорский муниципальный район\" Республики Татарстан"]

{"sheet":"data","index":1,"n_rows":25,"n_cols":3,"rows_kept":25,"hidden":true}
[]
["Техника, технология и техническое творчество .  Ручная обработка древесины"]
["Техника, технология и техническое творчество .  Ручная обработка металла"]
["Техника, технология и техническое творчество .  Механическая обработка древесины"]
["Техника, технология и техническое творчество .  Механическая обработка металла"]
["Техника, технология и техническое творчество .  Электротехника"]
["Техника, технология и техническое творчество .  Робототехника"]
["Техника, технология и техническое творчество .  3d - моделирование и печать"]
["Техника, технология и техническое творчество .  Обработка материалов на лазерно-гравировальной машине"]
["Техника, технология и техническое творчество .  Промышленный дизайн"]
["Культура дома, дизайн и технологии .  Обработка швейного изделия или узла + моделирование швейных изделий"]
["Культура дома, дизайн и технологии .  Обработка швейного изделия или узла + моделирование швейных изделий с использованием графических редакторов"]
["Культура дома, дизайн и технологии .  Обработка швейного изделия или узла на швейно-вышивальном оборудовании + моделирование швейных изделий"]
["Культура дома, дизайн и технологии .  Обработка швейного изделия или узла на швейно-вышивальном оборудовании + моделирование швейных изделий с использованием графических редакторов"]
["Культура дома, дизайн и технологии .  Робототехника"]
["Культура дома, дизайн и технологии .  3d - моделирование и печать"]
["Культура дома, дизайн и технологии .  Обработка материалов на лазерно-гравировальной машине"]
["Культура дома, дизайн и технологии .  Промышленный дизайн"]
["Роботехника .  "]
["Информационная безопасность ."]
[]
[]
["участник"]
["призер",null,"да"]
["победитель"]